Cogmind - Beta 10.2 @@@ ROGUE MODE // 2021.05.18 @ 09:11:10 Player: silmarilion6 Result: Destroyed by Y-45 Defender with Beam Rifle Performance ------------- Evolutions (1) 500 Regions Visited (2) 400 Robots Destroyed (25) 125 Value Destroyed (805) 805 Prototype IDs (0) 0 Alien Tech Used (0) 0 Bonus (0) 0 TOTAL SCORE: 1830 Bonus ------- None Cogmind --------- Core Integrity 0/400 Matter 300/300 Energy 72/100 System Corruption 6% Temperature Cool (9) Movement Core (600) Ox11 Location -9/Materials Parts ------- > --- POWER (1) -------- (None) > --- PROPULSION (3) --- (None) > --- UTILITY (3) ------ Heat Sink High-capacity Storage Unit Weapon Shielding > --- WEAPON (2) ------- (None) > --- INVENTORY (12) --- Aluminum Leg Aluminum Leg ECM Suite Utility Shielding Peak State ------------ > --- POWER ------------ Ion Engine > --- PROPULSION ------- Aluminum Leg Aluminum Leg Aluminum Leg > --- UTILITY ---------- High-capacity Storage Unit Sensor Array Signal Interpreter > --- WEAPON ----------- Light Assault Rifle Katana > --- INVENTORY -------- Aluminum Leg Aluminum Leg Aluminum Leg Aluminum Leg Heat Sink ECM Suite Utility Shielding Weapon Shielding EM Pulse Gun Small Laser Small Laser [Rating: 12] Favorites ----------- Power Ion Engine Engine Ion Engine Propulsion Aluminum Leg Leg Aluminum Leg Utility High-capacity Storage Unit Device Heat Sink Storage High-capacity Storage Unit Processor Signal Interpreter Protection Weapon Shielding Weapon Assault Rifle Energy Gun Small Laser Ballistic Gun Assault Rifle Launcher Grenade Launcher Slashing Weapon Katana Build | -11 -10 -9 ------- Run | Scr Mat Mat Slots Evolved 2 | . . 2 Power . | . . . Propulsion 1 | . . 1 Utility 1 | . . 1 Weapon . | . . . Parts Attached 35 | 7 12 16 Power 3 | 2 1 . Engine 3 | 2 1 . Core . | . . . Reactor . | . . . Propulsion 11 | 2 4 5 Treads . | . . . Leg 11 | 2 4 5 Wheel . | . . . Hover . | . . . Flight . | . . . Utility 8 | 1 3 4 Device 4 | . 2 2 Storage 2 | 1 1 . Processor 1 | . . 1 Hackware . | . . . Protection 1 | . . 1 Artifact . | . . . Weapon 13 | 2 4 7 Energy Gun 7 | . 3 4 Energy Cannon . | . . . Ballistic Gun 4 | 2 1 1 Ballistic Cannon . | . . . Launcher 1 | . . 1 Special Weapon . | . . . Impact Weapon . | . . . Slashing Weapon 1 | . . 1 Piercing Weapon . | . . . Special Melee Weapon . | . . . Unidentified Prototypes . | . . . Parts Lost 14 | . 1 13 Power 1 | . . 1 Propulsion 4 | . 1 3 Utility 2 | . . 2 Weapon 7 | . . 7 Highest Loss Streak 6 | . 1 6 Average Slot Usage (%) 94 | . 95 92 Engine 11 | . 14 8 Leg 29 | . 27 32 Device 10 | . 10 9 Storage 12 | . 14 11 Processor 3 | . . 8 Protection 1 | . . 2 Energy Gun 10 | . 10 10 Ballistic Gun 13 | . 17 7 Naked Turns . | . . . Heaviest Build 42 | 10 41 42 Greatest Support 30 | 20 20 30 Greatest Overweight (x) 11 | . 3 11 Average Overweight (x) 1 | . 1 1 Largest Inventory Capacity 12 | 6 12 12 Average Capacity 10 | 4 10 12 Most Carried 12 | 4 12 12 Average Carried 7 | 2 7 9 Final Capacity 12 | 6 12 12 Final Carried 12 | 2 12 4 Class Distribution -------------------- 60% | Scavenger-Mutant 39% | Mutant Dominant Class ---------------- Mutant | -10/Materials Scavenger-Mutant | -9/Materials Resources | -11 -10 -9 ----------- Run | Scr Mat Mat Matter Collected 705 | 283 261 161 Remotely . | . . . Salvage Created 945 | 88 467 390 Parts 49 | 3 32 14 Haulers Intercepted . | . . . Recyclers Shooed 1 | . 1 . Parts Field Recycled . | . . . Retrieved Matter . | . . . Parts Self-Destructed . | . . . Prevented . | . . . Kills | -11 -10 -9 ------- Run | Scr Mat Mat Combat Hostiles Destroyed 23 | . 13 10 Guns 21 | . 13 8 AOE 2 | . . 2 Classes Destroyed 6 | 1 3 2 Recycler 1 | 1 . . Watcher 1 | . 1 . Swarmer 3 | . 3 . Grunt 17 | . 10 7 Brawler 2 | . . 2 Duelist 1 | . . 1 Best Kill Streak 5 | 1 5 3 Combat Bots Only 5 | . 5 3 Max Kills in Single Turn 2 | 1 1 2 Gunslinging . | . . . Exploded 2 | . . 2 Melee . | . . . Uniques/NPCs Destroyed . | . . . Combat | -11 -10 -9 -------- Run | Scr Mat Mat Damage Taken 1985 | . 453 1532 Core 482 | . 70 412 Absorbed by Shields . | . . . Core Remaining (%) 86 | 100 72 . Volleys Fired 92 | 6 45 41 Largest 2 | 1 2 2 Hottest 85 | 20 60 85 Shots Fired 149 | 6 90 53 Gun 149 | 6 90 53 Cannon . | . . . Launcher . | . . . Special . | . . . Kinetic 85 | 6 51 28 Thermal 62 | . 39 23 Explosive . | . . . Electromagnetic 2 | . . 2 Robot Hit Streak 16 | 4 16 8 Robot Miss Streak 4 | 1 3 4 Penetration Max . | . . . Secondary Targets 1 | . . 1 Max Gunslinging Chain 1 | . . 1 Shots Hit Robots 110 | 5 67 38 Core Hits 59 | 2 28 29 Critical Hits . | . . . Critical Kills . | . . . Critical Parts Destroyed . | . . . Melee Attacks . | . . . Impact . | . . . Slashing . | . . . Piercing . | . . . Sneak Attacks . | . . . Combat Hostiles . | . . . Follow-up Attacks . | . . . Damage Inflicted 1618 | 64 819 735 Guns 1171 | 64 730 377 Cannons . | . . . Explosions 408 | . 67 341 Melee . | . . . Ramming 39 | . 22 17 Kinetic 631 | 64 408 159 Thermal 540 | . 322 218 Explosive 408 | . 67 341 Electromagnetic . | . . . Impact . | . . . Slashing . | . . . Piercing . | . . . Highest Corruption 6 | . . 6 Average Corruption 5 | . . 5 Corruption Purged . | . . . Effects 8 | . . 8 Message Errors 1 | . . 1 Heat Flow Errors 3 | . . 3 Energy Discharges 2 | . . 2 Parts Rejected 1 | . . 1 Data Loss (minor) 1 | . . 1 Overload Shots . | . . . Overflow Damage 62 | . 27 35 Projectiles . | . . . Explosions 62 | . 27 35 Melee . | . . . Knockbacks 1 | . 1 . Impact 1 | . 1 . Kinetic . | . . . Secondary . | . . . Self-Inflicted Damage 119 | . 6 113 Shots 1 | . . 1 Rammed 1 | . 1 . Targets Rammed 5 | . 3 2 Kicked 4 | . 2 2 Crushed . | . . . Highest Temperature 261 | . 12 261 Average Temperature 91 | . 7 97 Received Heat Transfer 702 | . 231 471 Effects 1 | . . 1 Energy Bleed 1 | . . 1 Siege Activations . | . . . Robots Corrupted . | . . . Combat Hostiles . | . . . Parts Fried . | . . . Impact Corruptions . | . . . Robots Melted . | . . . Combat Hostiles . | . . . Parts Melted . | . . . Heat Transferred 1055 | . 725 330 Parts Sabotaged . | . . . Parts Stolen . | . . . Parts Stripped . | . . . Power Chain Reactions . | . . . Missiles Intercepted . | . . . Alert | -11 -10 -9 ------- Run | Scr Mat Mat Peak Influence 313 | 5 272 313 Initial 114 | . 3 114 Average 132 | 2 107 174 Maximum Alert Level 1 | . 1 1 Low Security (%) 78 | 100 86 67 Level 1 21 | . 13 32 Level 2 . | . . . Level 3 . | . . . Level 4 . | . . . Level 5 . | . . . High Security . | . . . Max Security . | . . . Squads Dispatched 10 | . 6 4 Investigation 5 | . 4 1 Extermination . | . . . Reinforcement 5 | . 2 3 Assault . | . . . Garrison . | . . . Intercept . | . . . Construction Impeded 1 | . . 1 Haulers Reinforced . | . . . Stealth | -11 -10 -9 --------- Run | Scr Mat Mat Distress Signals 4 | . 1 3 Communications Jammed . | . . . Distress Signals . | . . . Times Spotted 46 | . 21 25 Peak Tracking Total 9 | . 6 9 Tactical Retreats 1 | . 1 . Traps | -11 -10 -9 ------- Run | Scr Mat Mat Traps Triggered 1 | . 1 . Indirectly . | . . . Trap Hack Attempts . | . . . Triggered . | . . . Disarmed 4 | . . 4 Reprogrammed . | . . . Reused . | . . . Traps Extracted . | . . . Installed . | . . . Triggered . | . . . Machines | -11 -10 -9 ---------- Run | Scr Mat Mat Machines Disabled 3 | . 1 2 Max in Single Turn 2 | . 1 2 Machines Sabotaged . | . . . Garrisons Compromised . | . . . Overloaded Fab Kills . | . . . Fab Network Shutdowns . | . . . Hacking | -11 -10 -9 --------- Run | Scr Mat Mat Machines Accessed 6 | . 4 2 Terminals 5 | . 3 2 Fabricators . | . . . Repair Stations . | . . . Recycling Units 1 | . 1 . Scanalyzers . | . . . Garrison Access . | . . . Total Hacks 18 | . 12 6 Successful 10 | . 6 4 Failed 8 | . 6 2 Catastrophic . | . . . Database Lockouts . | . . . Manual . | . . . Terminals 15 | . 9 6 Fabricators . | . . . Repair Stations . | . . . Recycling Units 3 | . 3 . Scanalyzers . | . . . Garrison Access . | . . . Terminal Hacks 9 | . 5 4 Record 3 | . 3 . Disarm Traps 1 | . . 1 Dispatch Records 1 | . . 1 Recall Reinforcements 1 | . 1 . Hauler Manifests 2 | . 1 1 Zone Layout 1 | . . 1 Fabricator Hacks . | . . . Repair Station Hacks . | . . . Recycling Unit Hacks 1 | . 1 . Retrieve Components 1 | . 1 . Scanalyzer . | . . . Garrison Access Hacks . | . . . Unauthorized Hacks . | . . . Terminals . | . . . Fabricators . | . . . Repair Stations . | . . . Recycling Units . | . . . Scanalyzers . | . . . Garrison Access . | . . . Data Cores Recovered . | . . . Used . | . . . Hacking Detections 6 | . 4 2 Full Trace Events 5 | . 4 1 Feedback Events . | . . . Feedback Blocked . | . . . Robot Schematics Acquired . | . . . Robots Built . | . . . Matter . | . . . Time . | . . . Total Robot Build Rating . | . . . Part Schematics Acquired . | . . . Parts Built . | . . . Matter . | . . . Time . | . . . Total Part Build Rating . | . . . Parts Repaired . | . . . Time . | . . . Parts Recycled . | . . . Recycled Matter . | . . . Retrieved Matter . | . . . Retrieved Components 1 | . 1 . Parts Scanalyzed . | . . . Part Schematics Acquired . | . . . Parts Damaged . | . . . Bothacking | -11 -10 -9 ------------ Run | Scr Mat Mat Used RIF Installer . | . . . Robots Hacked . | . . . Non-combat . | . . . Combat . | . . . Robot Hacks Applied . | . . . Relay Couplers Released . | . . . Robots Rewired . | . . . Allies Hacked . | . . . Hacks Repelled . | . . . Allies | -11 -10 -9 -------- Run | Scr Mat Mat Total Allies . | . . . Largest Group . | . . . Highest-Rated Group . | . . . Highest-Rated Ally . | . . . Total Orders . | . . . Ally Attacks . | . . . Total Damage . | . . . Kills . | . . . Allies Corrupted . | . . . Allies Melted . | . . . Intel | -11 -10 -9 ------- Run | Scr Mat Mat Robot Analysis Total . | . . . Derelict Logs Recovered . | . . . Drone Launches . | . . . Drone Recoveries . | . . . Exploration | -11 -10 -9 ------------- Run | Scr Mat Mat Turns Passed 1424 | 67 731 626 Spaces Moved 525 | 38 247 240 Core 8 | 7 . 1 Treads . | . . . Legs 517 | 31 247 239 Wheels . | . . . Hover . | . . . Flight . | . . . Fastest Speed 50 | 50 120 150 Average Speed 151 | 107 156 152 Slowest Speed 600 | 120 210 600 Overloaded Moves . | . . . Propulsion Burnouts . | . . . Robots Hopped . | . . . Cave-ins Triggered . | . . . Exploration Rate (%) 22 | 4 38 26 Regions Visited 2 Branch Regions . Pre-discovered Areas . | . . . Known Exits Taken . | . . . Unknown Exits Taken 2 | 1 1 . Scrap Searched . | . . . Spaces Dug . | . . . Terrain Destroyed 29 | . 4 25 Melee . | . . . Projectile . | . . . AOE 29 | . 4 25 Terrain Rammed . | . . . Walls Destroyed . | . . . Machines Disabled . | . . . Actions | -11 -10 -9 --------- Run | Scr Mat Mat Total 1016 | 57 503 456 Wait 312 | . 169 143 Move 523 | 37 246 240 Hop . | . . . Pick Up 32 | 7 17 8 Fast Attach 1 | 1 . . Attach 19 | 5 3 11 Detach 1 | . 1 . Swap 15 | 1 9 5 Drop 16 | . 10 6 Fire 92 | 6 45 41 Melee . | . . . Ram . | . . . Kick 5 | . 3 2 Crush . | . . . Escape Stasis . | . . . Rewire . | . . . Trap . | . . . Miscellaneous . | . . . Route ------- -11/Scrapyard -10/Materials -9/Materials (discovered 1 exit: [*Mat]) History --------- Turn | Location | Event 5 | -11/Scrapyard | Discovered new exit (range 16) 68 | -11/Scrapyard | Entered Materials 316 | -10/Materials | Build established: Mutant 758 | -10/Materials | Discovered new exit (range 15) 799 | -10/Materials | Entered another Materials area 799 | -9/Materials | Evolved 2 slots: Propulsion x1, Utility x1 843 | -9/Materials | Build established: Scavenger-Mutant 1312 | -9/Materials | Lost 6 parts (1p2u3w) 1410 | -9/Materials | Core integrity fell below 50% 1411 | -9/Materials | Discovered new exit (range 15) 1413 | -9/Materials | Core integrity fell below 20% 1425 | -9/Materials | Destroyed by Y-45 Defender with Beam Rifle Last Messages --------------- 01410_ M-13 Machinist fits Backup Laser I on G-34 Mercenary. 01411_ U-05 Engineer lays Concrete. 01411_ EXIT=FOUND 01412_ U-05 Engineer lays Concrete. 01412_ M-13 Machinist fits Backup Power I on G-34 Mercenary. 01413_ ALERT: Hostiles spotted, dispatching reinforcements to Terminal M012. 01414_ U-05 Engineer lays Concrete. 01414_ M-13 Machinist fits Backup Propulsion I on G-34 Mercenary. 01415_ U-05 Engineer lays Concrete. 01415_ Aluminum Leg destroyed. 01416_ U-05 Engineer lays Concrete. 01418_ Aluminum Leg destroyed. 01418_ U-05 Engineer lays Concrete. 01421_ Grenade Launcher destroyed. 01421_ U-05 Engineer lays Concrete. 01421_ Aluminum Leg destroyed. 01421_ U-05 Engineer lays Concrete. 01423_ T-07 Excavator is excavating. 01423_ U-05 Engineer lays Concrete. Map ----- +----------------------------------------------------+ | | | | | | | | | ?????????????????????????????????????????????????? | | ?????????????????????????????????????????????????? | | ?????????????????????????????????????????????????? | | ???????????????????????????????????????????####### | | ???????????????????????????????????######### | | ?????????????????????????????####+## # | | ?????????????????????????????# # | | ?????????????????????????????# # | | ?????????????????????????????# #### + | | ?????????????????????????????# ????# # | | ??????????????????????????? ?????# #### | | ??????????????????????############???????# #?# %! | | ????????????? ???? ??# #????????????# #?# ! | | ????????????? ??# < #????????????# #?# | | ????????????# # #????????????# #?# | | ????????????? # gg #???????????## ### | | ????????????# # ############# ### | | ????????????# # # + #?## # | | ????????????# # # #### #?# # | | ?????????????? # !?????# #?#### | | ????????????????# # ????# #????# | | ????????????????# "T"@ + """ ????# #????# | | ????????????????#t## # "R ???# #????# | | ?????????????????### # """ #### #????# | | ?????????????????#"" ## "" + #????# | | ?????????????????#"Y u ## #### #????? | | ?????????????????#"" ;"# ######???# #????# | | ????????????########! ; #??????????# #????? | | ?????????? % Y;###/####???# #????? | | ????????? u gY #???# #????? | | ?????????? g % """ ##### #????? | | ??????????######## u """ + #????? | | ?????????????????# m% ! """ ##### #????? | | ?????????????????# %* #???# #????? | | ?????????????????# """ #???# #????? | | ?????????????????# ; """ #???# #????? | | ?????????????????# ; """ #???# #????? | | ?????????????????+ " #???# #????? | | ?????????????????#####"""""##########???# #????? | | ????????????????????? ????????????# #????? | | ????????????????????? ????????????? +????? | | ????????????????????# ????????????? #????? | | ????????????????????# ????????????? #????? | | ????????????????????# """ ????????????? #????? | | ????????????????????????" ?????????????? ????? | | ????????????????????????? "?????????????? ????? | +----------------------------------------------------+ Best States ------------- Heat Dissipation 38 Energy Generation 10 Energy Capacity 250 Matter Stores 300 Matter Capacity 300 Sight Range 16 Robot Scan Range 10 Terrain Scan Density 10 Weapon Shielding 33 Evasion (%) 40 Item Schematics ----------------- None Robot Schematics ------------------ None Fabricated ------------ Nothing Alien Tech Used ----------------- None Achievements -------------- GoHome() Challenges ------------ None Game ------ Seed VisualFlyingProjector Manual? 0 Play Time 00:26:55 Cumulative 5.6 hours Start 2021.05.17 @ 11:46:00 End 2021.05.18 @ 09:11:10 Sessions 2 Manual Loads 0 Difficulty Rogue Special Mode None Game No. 5 Rogue 5 Adventurer 0 Explorer 0 Win Type - Total 0 Types 0/0/0/0/0/0/0/0/0 Lore% 12 Gallery% 9 Achievement% 9 Wizard Run 0 Options --------- ASCII 0 Keyboard 0 Movement Mouse Keybinds 0 Fullscreen 1 Font 18/CogNarrow Map View 76x50 Tactical HUD 1 Map Filters NONE Filters NONE Steam 1 RUN: 32184e12-48fe-4628-909c-6dc132d12bac